[Event "Masters Tournament (MTO)"]
[Site "Biel, Switzerland"]
[Date "2026.07.18"]
[Round "6.15"]
[White "Xu, Chang(Cq)"]
[Black "Cherniaev, Alexander"]
[Result "1/2-1/2"]
[TimeControl "100+30+30sec/move"]
[WhiteTitle "-"]
[BlackTitle "-"]
[WhiteFideId "8641757"]
[BlackFideId "4117301"]
[WhiteElo "2125"]
[BlackElo "2275"]

1. e4 {[%clk 01:40:53]} {[%emt 00:00:06]} c5 {[%clk 01:40:57]} {[%emt
00:00:05]} 2. Nf3 {[%clk 01:41:15]} {[%emt 00:00:07]} Nc6 {[%clk 01:41:23]}
{[%emt 00:00:04]} 3. Bb5 {[%clk 01:41:37]} {[%emt 00:00:08]} g6 {[%clk
01:41:48]} {[%emt 00:00:05]} 4. O-O {[%clk 01:41:56]} {[%emt 00:00:10]} Bg7
{[%clk 01:42:15]} {[%emt 00:00:03]} 5. c3 {[%clk 01:42:19]} {[%emt 00:00:07]}
Nf6 {[%clk 01:42:26]} {[%emt 00:00:19]} 6. Re1 {[%clk 01:42:42]} {[%emt
00:00:07]} O-O {[%clk 01:39:07]} {[%emt 00:03:47]} 7. d4 {[%clk 01:43:02]}
{[%emt 00:00:11]} d5 {[%clk 01:39:29]} {[%emt 00:00:10]} 8. e5 {[%clk
01:43:19]} {[%emt 00:00:13]} Ne4 {[%clk 01:39:09]} {[%emt 00:00:49]} 9. Be3
{[%clk 01:43:38]} {[%emt 00:00:11]} cxd4 {[%clk 01:38:36]} {[%emt 00:01:04]} 10.
cxd4 {[%clk 01:43:55]} {[%emt 00:00:12]} f6 {[%clk 01:29:52]} {[%emt 00:09:15]}
11. exf6 {[%clk 01:36:34]} {[%emt 00:07:51]} exf6 {[%clk 01:28:09]} {[%emt
00:02:13]} 12. Nc3 {[%clk 01:32:41]} {[%emt 00:04:21]} Nxc3 {[%clk 01:22:55]}
{[%emt 00:05:45]} 13. bxc3 {[%clk 01:33:04]} {[%emt 00:00:07]} Na5 {[%clk
01:22:53]} {[%emt 00:00:33]} 14. Nd2 {[%clk 01:28:57]} {[%emt 00:04:37]} Bf5
{[%clk 01:13:43]} {[%emt 00:09:40]} 15. Qf3 {[%clk 01:24:29]} {[%emt 00:04:57]}
a6 {[%clk 01:04:19]} {[%emt 00:09:55]} 16. Bf1 {[%clk 01:23:46]} {[%emt
00:01:11]} Rc8 {[%clk 01:02:00]} {[%emt 00:02:51]} 17. g4 {[%clk 01:09:41]}
{[%emt 00:14:34]} Be6 {[%clk 01:01:51]} {[%emt 00:00:39]} 18. Bf4 {[%clk
01:09:57]} {[%emt 00:00:14]} Qd7 {[%clk 01:01:48]} {[%emt 00:00:33]} 19. h3
{[%clk 01:10:10]} {[%emt 00:00:16]} Bf7 {[%clk 00:56:52]} {[%emt 00:05:27]} 20.
Nb3 {[%clk 01:08:44]} {[%emt 00:01:56]} Nxb3 {[%clk 00:56:03]} {[%emt
00:01:19]} 21. axb3 {[%clk 01:09:06]} {[%emt 00:00:08]} Rfe8 {[%clk 00:55:44]}
{[%emt 00:00:49]} 22. Qd3 {[%clk 01:06:02]} {[%emt 00:03:33]} Bf8 {[%clk
00:52:20]} {[%emt 00:03:55]} 23. Bg2 {[%clk 01:05:03]} {[%emt 00:01:28]} Rxe1+
{[%clk 00:37:51]} {[%emt 00:15:00]} 24. Rxe1 {[%clk 01:05:25]} {[%emt
00:00:08]} Qd8 {[%clk 00:38:12]} {[%emt 00:00:10]} 25. Ra1 {[%clk 00:56:10]}
{[%emt 00:09:43]} Qb6 {[%clk 00:38:01]} {[%emt 00:00:42]} 26. b4 {[%clk
00:56:02]} {[%emt 00:00:38]} Bd6 {[%clk 00:35:49]} {[%emt 00:02:42]} 27. Bxd6
{[%clk 00:55:26]} {[%emt 00:01:07]} Qxd6 {[%clk 00:36:17]} {[%emt 00:00:02]} 28.
Re1 {[%clk 00:54:03]} {[%emt 00:01:51]} Rc7 {[%clk 00:33:26]} {[%emt 00:03:22]}
29. Re3 {[%clk 00:52:48]} {[%emt 00:01:44]} Kg7 {[%clk 00:33:50]} {[%emt
00:00:08]} 30. Qe2 {[%clk 00:52:24]} {[%emt 00:00:52]} Qf4 {[%clk 00:33:25]}
{[%emt 00:00:56]} 31. Qa2 {[%clk 00:52:06]} {[%emt 00:00:48]} Qd6 {[%clk
00:33:31]} {[%emt 00:00:24]} 32. Qa5 {[%clk 00:51:39]} {[%emt 00:00:57]} Qd7
{[%clk 00:27:41]} {[%emt 00:06:21]} 33. h4 {[%clk 00:49:42]} {[%emt 00:02:26]}
h6 {[%clk 00:22:35]} {[%emt 00:05:36]} 34. Bf3 {[%clk 00:47:59]} {[%emt
00:02:12]} Rc8 {[%clk 00:16:49]} {[%emt 00:06:17]} 35. Qa1 {[%clk 00:47:21]}
{[%emt 00:01:07]} Qd6 {[%clk 00:16:42]} {[%emt 00:00:38]} 36. Qe1 {[%clk
00:47:20]} {[%emt 00:00:30]} Rc7 {[%clk 00:17:02]} {[%emt 00:00:11]} 37. Kg2
{[%clk 00:45:36]} {[%emt 00:02:14]} b6 {[%clk 00:15:55]} {[%emt 00:01:38]} 38.
Qa1 {[%clk 00:44:50]} {[%emt 00:01:15]} Ra7 {[%clk 00:16:14]} {[%emt 00:00:11]}
39. Re2 {[%clk 00:37:33]} {[%emt 00:07:47]} a5 {[%clk 00:16:16]} {[%emt
00:00:28]} 40. bxa5 {[%clk 00:35:56]} {[%emt 00:02:07]} bxa5 {[%clk 00:16:28]}
{[%emt 00:00:19]} 41. Qa4 {[%clk 00:35:30]} {[%emt 00:00:55]} Qc7 {[%clk
00:13:08]} {[%emt 00:03:50]} 42. Qa3 {[%clk 00:34:56]} {[%emt 00:01:05]} Qd7
{[%clk 00:10:24]} {[%emt 00:03:13]} 43. Rb2 {[%clk 00:35:00]} {[%emt 00:00:26]}
Qe7 {[%clk 00:03:51]} {[%emt 00:07:02]} 44. Qxe7 {[%clk 00:32:29]} {[%emt
00:03:02]} Rxe7 {[%clk 00:04:16]} {[%emt 00:00:05]} 45. Rb5 {[%clk 00:26:06]}
{[%emt 00:06:53]} Ra7 {[%clk 00:04:38]} {[%emt 00:00:09]} 46. Bxd5 {[%clk
00:26:01]} {[%emt 00:00:35]} Bxd5+ {[%clk 00:02:28]} {[%emt 00:02:39]} 47. Rxd5
{[%clk 00:26:24]} {[%emt 00:00:07]} a4 {[%clk 00:02:54]} {[%emt 00:00:04]} 48.
Rb5 {[%clk 00:26:48]} {[%emt 00:00:06]} a3 {[%clk 00:03:18]} {[%emt 00:00:06]}
49. Rb1 {[%clk 00:27:15]} {[%emt 00:00:03]} a2 {[%clk 00:03:26]} {[%emt
00:00:23]} 50. Ra1 {[%clk 00:27:38]} {[%emt 00:00:07]} Ra3 {[%clk 00:03:50]}
{[%emt 00:00:06]} 51. Kf1 {[%clk 00:26:18]} {[%emt 00:01:49]} Kf7 {[%clk
00:02:49]} {[%emt 00:01:31]} 52. Ke2 {[%clk 00:26:41]} {[%emt 00:00:07]} Rxc3
{[%clk 00:02:45]} {[%emt 00:00:34]} 53. Rxa2 {[%clk 00:27:03]} {[%emt
00:00:08]} Rh3 {[%clk 00:02:59]} {[%emt 00:00:16]} 54. d5 {[%clk 00:26:20]}
{[%emt 00:01:13]} Rxh4 {[%clk 00:02:48]} {[%emt 00:00:41]} 55. Ra7+ {[%clk
00:26:44]} {[%emt 00:00:06]} Ke8 {[%clk 00:02:17]} {[%emt 00:01:01]} 56. Kf3
{[%clk 00:21:09]} {[%emt 00:06:04]} h5 {[%clk 00:01:07]} {[%emt 00:01:41]} 57.
gxh5 {[%clk 00:21:30]} {[%emt 00:00:08]} gxh5 {[%clk 00:28:16]} {[%emt
00:03:22]} 58. Rh7 {[%clk 00:51:37]} {[%emt 00:00:22]} f5 {[%clk 00:28:06]}
{[%emt 00:00:41]} 59. Ke3 {[%clk 00:50:46]} {[%emt 00:01:21]} Re4+ {[%clk
00:28:12]} {[%emt 00:00:23]} 60. Kd3 {[%clk 00:51:09]} {[%emt 00:00:07]} h4
{[%clk 00:19:15]} {[%emt 00:09:28]} 61. f3 {[%clk 00:51:20]} {[%emt 00:00:20]}
Ra4 {[%clk 00:19:39]} {[%emt 00:00:06]} 62. Rh5 {[%clk 00:51:30]} {[%emt
00:00:19]} Ke7 {[%clk 00:19:40]} {[%emt 00:00:28]} 63. Rxf5 {[%clk 00:50:09]}
{[%emt 00:01:51]} Kd6 {[%clk 00:20:07]} {[%emt 00:00:04]} 64. Ke3 {[%clk
00:50:29]} {[%emt 00:00:09]} h3 {[%clk 00:18:34]} {[%emt 00:02:04]} 65. Rh5
{[%clk 00:50:08]} {[%emt 00:00:50]} h2 {[%clk 00:18:47]} {[%emt 00:00:18]} 66.
f4 {[%clk 00:49:43]} {[%emt 00:00:55]} Ra1 {[%clk 00:17:20]} {[%emt 00:01:57]}
67. Rxh2 {[%clk 00:50:06]} {[%emt 00:00:07]} Kxd5 {[%clk 00:17:46]} {[%emt
00:00:05]} 68. Rh5+ {[%clk 00:50:23]} {[%emt 00:00:12]} Ke6 {[%clk 00:18:09]}
{[%emt 00:00:07]} 69. Ke4 {[%clk 00:50:49]} {[%emt 00:00:04]} Re1+ {[%clk
00:18:28]} {[%emt 00:00:11]} 70. Kf3 {[%clk 00:51:08]} {[%emt 00:00:11]} Kf6
{[%clk 00:18:38]} {[%emt 00:00:20]} 71. Kf2 {[%clk 00:51:08]} {[%emt 00:00:30]}
Ra1 {[%clk 00:18:54]} {[%emt 00:00:14]} 72. Rb5 {[%clk 00:51:26]} {[%emt
00:00:13]} Ra3 {[%clk 00:19:15]} {[%emt 00:00:08]} 73. Re5 {[%clk 00:51:48]}
{[%emt 00:00:07]} Rb3 {[%clk 00:18:48]} {[%emt 00:00:58]} 74. Re3 {[%clk
00:52:12]} {[%emt 00:00:06]} Rxe3 {[%clk 00:18:37]} {[%emt 00:00:42]} 75. Kxe3
{[%clk 00:52:36]} {[%emt 00:00:05]} Kf5 {[%clk 00:19:00]} {[%emt 00:00:07]} 76.
Kf3 {[%clk 00:53:03]} {[%emt 00:00:03]} Kf6 {[%clk 00:19:08]} {[%emt 00:00:22]}
77. Ke4 {[%clk 00:53:28]} {[%emt 00:00:05]} Ke6 {[%clk 00:19:33]} {[%emt
00:00:05]} 78. f5+ {[%clk 00:53:52]} {[%emt 00:00:06]} Kf6 {[%clk 00:20:00]}
{[%emt 00:00:02]} 79. Kf4 {[%clk 00:54:17]} {[%emt 00:00:05]} Kf7 {[%clk
00:20:26]} {[%emt 00:00:05]} 80. Kg5 {[%clk 00:54:44]} {[%emt 00:00:04]} Kg7
{[%clk 00:20:50]} {[%emt 00:00:06]} 81. f6+ {[%clk 00:55:09]} {[%emt 00:00:04]}
Kf7 {[%clk 00:21:18]} {[%emt 00:00:02]} 82. Kf5 {[%clk 00:55:33]} {[%emt
00:00:06]} Kf8 {[%clk 00:21:29]} {[%emt 00:00:20]} 83. Ke6 {[%clk 00:55:51]}
{[%emt 00:00:12]} Ke8 {[%clk 00:21:51]} {[%emt 00:00:08]} 84. f7+ {[%clk
00:56:15]} {[%emt 00:00:05]} Kf8 {[%clk 00:22:13]} {[%emt 00:00:08]} 85. Kf6
{[%clk 00:56:41]} {[%emt 00:00:04]} 1/2-1/2

[Event "Masters Tournament (MTO)"]
[Site "Biel, Switzerland"]
[Date "2026.07.18"]
[Round "6.16"]
[White "Joly, Julien"]
[Black "Ragavan, Samarth Rajesh"]
[Result "0-1"]
[TimeControl "100+30+30sec/move"]
[WhiteTitle "-"]
[BlackTitle "-"]
[WhiteFideId "26082284"]
[BlackFideId "39918106"]
[WhiteElo "2257"]
[BlackElo "2106"]

1. d4 {[%clk 01:40:37]} {[%emt 00:00:23]} Nf6 {[%clk 01:40:54]} {[%emt
00:00:07]} 2. c4 {[%clk 01:40:51]} {[%emt 00:00:15]} e6 {[%clk 01:41:21]}
{[%emt 00:00:04]} 3. g3 {[%clk 01:40:31]} {[%emt 00:00:49]} d5 {[%clk
01:41:37]} {[%emt 00:00:15]} 4. Nf3 {[%clk 01:40:42]} {[%emt 00:00:19]} Bb4+
{[%clk 01:41:35]} {[%emt 00:00:31]} 5. Bd2 {[%clk 01:40:49]} {[%emt 00:00:23]}
Be7 {[%clk 01:42:02]} {[%emt 00:00:04]} 6. Bg2 {[%clk 01:40:59]} {[%emt
00:00:19]} O-O {[%clk 01:42:27]} {[%emt 00:00:06]} 7. Qc2 {[%clk 01:41:23]}
{[%emt 00:00:06]} Nbd7 {[%clk 01:42:20]} {[%emt 00:00:37]} 8. Bf4 {[%clk
01:37:46]} {[%emt 00:04:07]} c6 {[%clk 01:39:37]} {[%emt 00:03:13]} 9. h4
{[%clk 01:36:51]} {[%emt 00:01:24]} b6 {[%clk 01:36:21]} {[%emt 00:03:47]} 10.
Nc3 {[%clk 01:36:45]} {[%emt 00:00:35]} Ba6 {[%clk 01:35:12]} {[%emt 00:01:39]}
11. e4 {[%clk 01:24:52]} {[%emt 00:12:23]} dxe4 {[%clk 01:31:04]} {[%emt
00:04:39]} 12. Ne5 {[%clk 01:21:31]} {[%emt 00:03:50]} Bb7 {[%clk 01:24:15]}
{[%emt 00:07:19]} 13. O-O-O {[%clk 01:17:21]} {[%emt 00:04:39]} Qc8 {[%clk
01:22:32]} {[%emt 00:02:15]} 14. Nxe4 {[%clk 01:05:21]} {[%emt 00:12:29]} Nxe4
{[%clk 01:17:31]} {[%emt 00:05:32]} 15. Qxe4 {[%clk 00:59:21]} {[%emt
00:06:29]} Nxe5 {[%clk 01:15:10]} {[%emt 00:02:52]} 16. Bxe5 {[%clk 00:58:39]}
{[%emt 00:01:10]} Qd7 {[%clk 01:09:17]} {[%emt 00:06:24]} 17. Qg4 {[%clk
00:42:12]} {[%emt 00:16:57]} f6 {[%clk 01:08:39]} {[%emt 00:01:09]} 18. Bf4
{[%clk 00:42:35]} {[%emt 00:00:07]} Bd6 {[%clk 01:06:49]} {[%emt 00:02:20]} 19.
Bd2 {[%clk 00:40:15]} {[%emt 00:02:49]} Rfe8 {[%clk 01:03:03]} {[%emt
00:04:16]} 20. Bc3 {[%clk 00:39:26]} {[%emt 00:01:19]} Qf7 {[%clk 00:59:39]}
{[%emt 00:03:54]} 21. Rhe1 {[%clk 00:35:37]} {[%emt 00:04:19]} Rad8 {[%clk
00:55:28]} {[%emt 00:04:42]} 22. h5 {[%clk 00:25:35]} {[%emt 00:10:32]} f5
{[%clk 00:55:20]} {[%emt 00:00:38]} 23. Qh4 {[%clk 00:23:54]} {[%emt 00:02:09]}
Be7 {[%clk 00:54:37]} {[%emt 00:01:15]} 24. Qh1 {[%clk 00:24:02]} {[%emt
00:00:21]} Rc8 {[%clk 00:52:19]} {[%emt 00:02:49]} 25. f4 {[%clk 00:22:17]}
{[%emt 00:02:14]} Bf6 {[%clk 00:52:05]} {[%emt 00:00:41]} 26. Re3 {[%clk
00:22:08]} {[%emt 00:00:42]} Ba8 {[%clk 00:47:22]} {[%emt 00:05:13]} 27. Kc2
{[%clk 00:13:50]} {[%emt 00:08:48]} Red8 {[%clk 00:44:56]} {[%emt 00:02:57]} 28.
Red3 {[%clk 00:13:57]} {[%emt 00:00:23]} Bb7 {[%clk 00:44:44]} {[%emt
00:00:43]} 29. b3 {[%clk 00:13:41]} {[%emt 00:00:45]} Qd7 {[%clk 00:25:14]}
{[%emt 00:20:00]} 30. Bf3 {[%clk 00:13:51]} {[%emt 00:00:20]} Ba6 {[%clk
00:25:09]} {[%emt 00:00:35]} 31. R3d2 {[%clk 00:13:31]} {[%emt 00:00:50]} Qd6
{[%clk 00:19:12]} {[%emt 00:06:27]} 32. Qe1 {[%clk 00:13:14]} {[%emt 00:00:46]}
Re8 {[%clk 00:18:48]} {[%emt 00:00:55]} 33. Qe3 {[%clk 00:13:33]} {[%emt
00:00:11]} Qb8 {[%clk 00:18:17]} {[%emt 00:01:00]} 34. g4 {[%clk 00:12:42]}
{[%emt 00:01:22]} b5 {[%clk 00:17:18]} {[%emt 00:01:29]} 35. g5 {[%clk
00:12:40]} {[%emt 00:00:31]} Bd8 {[%clk 00:17:38]} {[%emt 00:00:11]} 36. c5
{[%clk 00:11:17]} {[%emt 00:01:53]} b4 {[%clk 00:17:33]} {[%emt 00:00:35]} 37.
Bb2 {[%clk 00:10:04]} {[%emt 00:01:43]} Bc7 {[%clk 00:17:23]} {[%emt 00:00:40]}
38. Bxc6 {[%clk 00:08:38]} {[%emt 00:01:55]} Bxf4 {[%clk 00:17:46]} {[%emt
00:00:07]} 39. Qf3 {[%clk 00:08:48]} {[%emt 00:00:20]} Rxc6 {[%clk 00:13:18]}
{[%emt 00:04:58]} 40. Qxc6 {[%clk 00:09:17]} {[%emt 00:00:01]} Bb7 {[%clk
00:13:40]} {[%emt 00:00:08]} 41. Qd7 {[%clk 00:00:53]} {[%emt 00:08:54]} Be4+
{[%clk 00:14:05]} {[%emt 00:00:06]} 42. Kc1 {[%clk 00:24:11]} {[%emt 00:07:12]}
Bxg5 {[%clk 00:44:22]} {[%emt 00:00:12]} 43. d5 {[%clk 00:22:24]} {[%emt
00:02:17]} Re7 {[%clk 00:44:41]} {[%emt 00:00:11]} 44. Qd6 {[%clk 00:21:38]}
{[%emt 00:01:16]} Qxd6 {[%clk 00:44:52]} {[%emt 00:00:20]} 45. cxd6 {[%clk
00:22:07]} Rd7 {[%clk 00:45:13]} {[%emt 00:00:09]} 46. Rg1 {[%clk 00:21:27]}
{[%emt 00:01:09]} Bxd2+ {[%clk 00:43:16]} {[%emt 00:02:27]} 47. Kxd2 {[%clk
00:21:56]} {[%emt 00:00:02]} Rxd6 {[%clk 00:43:34]} {[%emt 00:00:11]} 48. Rxg7+
{[%clk 00:22:02]} {[%emt 00:00:24]} Kf8 {[%clk 00:44:03]} {[%emt 00:00:02]} 49.
Rxh7 {[%clk 00:20:41]} {[%emt 00:01:51]} f4 {[%clk 00:43:43]} {[%emt 00:00:50]}
50. Rh8+ {[%clk 00:15:14]} {[%emt 00:05:56]} Kf7 {[%clk 00:44:06]} {[%emt
00:00:06]} 51. h6 {[%clk 00:13:47]} {[%emt 00:01:59]} Rxd5+ {[%clk 00:44:32]}
{[%emt 00:00:04]} 52. Ke2 {[%clk 00:12:00]} {[%emt 00:02:16]} Ra5 {[%clk
00:41:09]} {[%emt 00:03:53]} 53. Rd8 {[%clk 00:07:40]} {[%emt 00:04:50]} Rxa2
{[%clk 00:40:58]} {[%emt 00:00:42]} 54. Rd2 {[%clk 00:07:52]} {[%emt 00:00:18]}
Kg6 {[%clk 00:39:46]} {[%emt 00:01:41]} 55. Be5 {[%clk 00:06:50]} {[%emt
00:01:32]} f3+ {[%clk 00:39:12]} {[%emt 00:01:05]} 56. Ke3 {[%clk 00:07:10]}
{[%emt 00:00:10]} Rxd2 {[%clk 00:39:36]} {[%emt 00:00:05]} 57. Kxd2 {[%clk
00:07:38]} {[%emt 00:00:02]} Kxh6 {[%clk 00:39:59]} {[%emt 00:00:07]} 58. Bd6
{[%clk 00:02:17]} {[%emt 00:05:51]} Bd5 {[%clk 00:40:08]} {[%emt 00:00:22]} 59.
Bxb4 {[%clk 00:02:31]} {[%emt 00:00:16]} Bxb3 {[%clk 00:40:34]} {[%emt
00:00:04]} 60. Ke3 {[%clk 00:02:39]} {[%emt 00:00:21]} Bd5 {[%clk 00:40:58]}
{[%emt 00:00:05]} 61. Ba5 {[%clk 00:02:28]} {[%emt 00:00:42]} Kg6 {[%clk
00:40:56]} {[%emt 00:00:32]} 62. Bb4 {[%clk 00:02:43]} {[%emt 00:00:16]} Kf5
{[%clk 00:41:21]} {[%emt 00:00:05]} 63. Ba5 {[%clk 00:03:04]} {[%emt 00:00:09]}
e5 {[%clk 00:41:43]} {[%emt 00:00:08]} 64. Bc3 {[%clk 00:03:28]} {[%emt
00:00:05]} e4 {[%clk 00:41:46]} {[%emt 00:00:28]} 65. Bd2 {[%clk 00:03:39]}
{[%emt 00:00:19]} Ke6 {[%clk 00:41:59]} {[%emt 00:00:17]} 66. Be1 {[%clk
00:03:35]} {[%emt 00:00:34]} Kd7 {[%clk 00:42:20]} {[%emt 00:00:08]} 67. Kd4
{[%clk 00:03:50]} {[%emt 00:00:15]} Kc6 {[%clk 00:42:41]} {[%emt 00:00:09]} 68.
Bf2 {[%clk 00:04:14]} {[%emt 00:00:06]} a5 {[%clk 00:43:03]} {[%emt 00:00:09]}
69. Kc3 {[%clk 00:03:09]} {[%emt 00:01:35]} Kb5 {[%clk 00:43:19]} {[%emt
00:00:13]} 70. Kd4 {[%clk 00:03:13]} {[%emt 00:00:26]} a4 {[%clk 00:43:08]}
{[%emt 00:00:41]} 0-1